bitfinex-derivatives/quotes_SOLF0:USTF0_20240827
["timestamp","ask_amount","ask_price","bid_price","bid_amount"]
[1724794955103,11.69965519,150.48,150.45,0.04660262]
[1724794955287,11.69965519,150.47,150.45,0.04660262]
[1724794955487,3.3229,150.47,150.45,0.04660262]
[1724794955891,6.64596315,150.46,150.45,0.04660262]
[1724794956395,3.3229,150.47,150.45,0.04660262]
[1724794956591,6.6459284,150.46,150.45,0.04660262]
[1724794957998,6.6459284,150.46,150.45,14.60970262]
[1724794958200,0.04439632,150.49,150.45,14.60970262]
[1724794958387,11.70026593,150.48,150.47,11.24]
[1724794958590,11.70026593,150.48,150.45,3.36970262]
[1724794958591,11.70026593,150.48,150.45,0.04660262]
[1724794958797,0.04439632,150.49,150.47,11.24]
[1724794959000,11.70022635,150.48,150.47,11.24]
[1724794959795,6.64531982,150.48,150.47,11.24]
[1724794960002,11.7001969,150.48,150.47,11.24]
[1724794962001,6.64531982,150.48,150.47,14.5627]
[1724794965698,6.64531982,150.48,150.47,11.24]
[1724794966001,11.70053579,150.48,150.47,11.24]
[1724794966195,0.04439632,150.49,150.47,11.24]
[1724794966502,0.04439632,150.49,150.48,11.24]
[1724794966697,6.68933717,150.49,150.48,11.24]
[1724794969813,6.68933717,150.49,150.48,14.5625]
[1724794970313,6.68933717,150.49,150.46,11.24]
[1724794970713,6.68933717,150.49,150.46,14.5628]
[1724794971312,0.04439632,150.49,150.46,14.5628]
[1724794972129,6.64518435,150.48,150.46,14.5628]
[1724794972420,0.04439632,150.49,150.46,14.5628]
[1724794972616,6.6452466,150.48,150.46,14.5628]
[1724794972811,0.04439632,150.49,150.46,14.5628]
[1724794973025,6.64524482,150.48,150.46,14.5628]
[1724794973324,0.04439632,150.49,150.46,14.5628]
[1724794973510,6.64517523,150.48,150.46,14.5628]
[1724794973712,0.04439632,150.49,150.46,14.5628]
[1724794973915,6.64517124,150.48,150.47,3.3227]
[1724794975220,6.64517124,150.48,150.47,14.5627]
[1724794975423,0.04439632,150.49,150.47,14.5627]
[1724794975624,6.64515896,150.48,150.47,14.5627]
[1724794978719,6.64515719,150.48,150.47,14.5627]
[1724794979826,0.04439632,150.49,150.47,14.5627]
[1724794980331,0.04439632,150.49,150.47,3.3227]
[1724794981322,6.64485861,150.48,150.47,3.3227]
[1724794984132,0.04439632,150.49,150.47,3.3227]
[1724794984330,0.04439632,150.49,150.48,11.24]
[1724794984560,6.68901927,150.49,150.48,11.24]
[1724794985425,6.68901927,150.49,150.46,3.3229]
[1724794985732,6.64462295,150.48,150.45,11.28660262]
[1724794985933,6.64462295,150.47,150.45,11.28660262]
[1724794986134,0.04439632,150.49,150.45,14.60960262]
[1724794986327,6.64520705,150.48,150.45,14.60960262]
[1724794986631,0.04439632,150.49,150.45,14.60960262]
[1724794986831,6.64546042,150.48,150.45,14.60960262]
[1724794987130,0.04439632,150.49,150.45,14.60960262]
[1724794987340,6.64545865,150.48,150.45,14.60960262]
[1724794987530,9.7886178,150.49,150.45,14.60960262]
[1724794987733,6.64546327,150.48,150.45,14.60960262]
[1724794987943,9.7886178,150.49,150.45,14.60960262]
[1724794988233,6.64546246,150.48,150.45,14.60960262]
[1724794988434,9.7886178,150.49,150.47,11.24]
[1724794988435,0.04439632,150.49,150.47,11.24]
[1724794988930,6.64492148,150.48,150.47,11.24]
[1724794989245,0.04439632,150.49,150.47,11.24]
[1724794989431,6.64487851,150.48,150.47,11.24]
[1724794990127,6.64487851,150.48,150.47,14.5627]
[1724794990628,6.64492215,150.48,150.45,11.28660262]
[1724794990826,0.04439632,150.49,150.45,0.04660262]
[1724794991043,6.64492731,150.48,150.45,0.04660262]
[1724794991237,3.36669632,150.49,150.45,0.04660262]
[1724794991437,6.64493101,150.48,150.45,0.04660262]
[1724794991638,0.04439632,150.49,150.45,3.36960262]
[1724794991937,0.04439632,150.49,150.48,11.24]
[1724794992243,0.04439632,150.49,150.45,0.04660262]
[1724794992440,0.04439632,150.49,150.48,11.24]
[1724794992632,6.68898294,150.49,150.48,11.24]
[1724794993730,0.04439632,150.49,150.48,11.24]
[1724794993942,6.68922729,150.49,150.48,11.24]
[1724794994339,6.6892281,150.49,150.48,11.24]
[1724794996043,6.6892281,150.49,150.45,0.04660262]
[1724794996044,6.6892281,150.49,150.46,3.3229]
[1724794996242,6.64483178,150.48,150.47,11.24]
[1724794996636,0.04439632,150.49,150.47,11.24]
[1724794997540,0.04439632,150.49,150.46,3.3229]
[1724794997836,0.04439632,150.49,150.47,11.24]
[1724794999045,0.04439632,150.49,150.47,11.23]
[1724794999559,0.04439632,150.49,150.46,11.23]
[1724795001166,0.04439632,150.49,150.45,0.04660262]
[1724795001345,6.64502901,150.48,150.45,11.27660262]
[1724795001645,0.04439632,150.49,150.45,11.27660262]
[1724795001945,6.64503063,150.48,150.45,11.27660262]
[1724795002140,0.04439632,150.49,150.45,11.27660262]
[1724795002341,6.64497592,150.48,150.45,11.27660262]
[1724795002540,0.04439632,150.49,150.45,11.27660262]
[1724795002848,6.64497592,150.48,150.45,11.27660262]
[1724795003149,0.04439632,150.49,150.45,14.59970262]
[1724795003450,6.64501061,150.48,150.47,3.3227]
[1724795003654,0.04439632,150.49,150.47,11.23]
[1724795005042,0.04439632,150.49,150.47,14.5526]
[1724795005439,0.04439632,150.49,150.45,0.04660262]
[1724795005634,0.04439632,150.49,150.47,11.23]
[1724795005878,6.64524683,150.48,150.47,11.23]
[1724795006256,6.64524683,150.48,150.45,0.04660262]
[1724795006449,0.04439632,150.49,150.45,0.04660262]
[1724795006748,6.64530363,150.48,150.45,11.27660262]
[1724795006953,0.04439632,150.49,150.45,11.27660262]
[1724795007175,0.04439632,150.49,150.45,0.04660262]
[1724795007343,6.64530429,150.47,150.45,0.04660262]
[1724795007641,0.04439632,150.49,150.45,0.04660262]
[1724795007843,0.04439632,150.49,150.48,11.23]
[1724795008041,6.68929879,150.49,150.48,11.23]
[1724795008842,0.04439632,150.49,150.48,11.23]
[1724795010054,0.04439632,150.49,150.46,3.3229]
[1724795010353,0.04439632,150.49,150.45,0.04660262]
[1724795010653,0.04439632,150.49,150.47,11.23]
[1724795011250,0.04439632,150.49,150.45,0.04660262]
[1724795011451,0.04439632,150.49,150.47,11.23]
[1724795011647,0.04439632,150.49,150.45,0.04660262]
[1724795011951,0.04439632,150.49,150.47,11.23]
[1724795015052,0.04439632,150.49,150.45,0.04660262]
[1724795015243,0.04439632,150.49,150.46,11.23]
[1724795016448,0.04439632,150.49,150.46,14.5528]
[1724795016844,0.04439632,150.49,150.46,3.3228]
[1724795017056,0.04439632,150.49,150.46,14.5528]
[1724795017653,0.04439632,150.49,150.45,0.04660262]
[1724795017950,0.04439632,150.49,150.45,11.27660262]
[1724795018156,5.0609177,150.48,150.45,14.59960262]
[1724795018357,5.0609177,150.47,150.45,11.27660262]
[1724795018548,0.04439632,150.49,150.45,3.36960262]
[1724795018760,5.06088504,150.48,150.45,14.59960262]
[1724795018988,0.04439632,150.49,150.45,14.59960262]
[1724795019367,0.04439632,150.49,150.45,11.27660262]
[1724795019860,0.04439632,150.49,150.46,3.3229]
[1724795021353,0.04439632,150.49,150.45,14.59970262]
[1724795021959,0.04439632,150.49,150.45,3.36970262]
[1724795022153,0.04439632,150.49,150.45,0.04660262]
[1724795022353,0.04439632,150.49,150.45,11.27660262]
[1724795022553,0.04439632,150.49,150.46,3.37730081]
[1724795025259,0.04439632,150.49,150.45,14.59970262]
[1724795025756,0.04439632,150.49,150.46,3.35769463]
[1724795027463,0.04439632,150.49,150.45,14.58970262]
[1724795027464,3.3225,150.48,150.45,0.04660262]
[1724795027656,3.3225,150.48,150.46,3.26135234]
[1724795028766,3.36679632,150.49,150.46,3.26135234]
[1724795029365,3.36679632,150.49,150.45,0.04660262]
[1724795029863,3.36679632,150.49,150.46,3.28095302]
[1724795031059,3.36679632,150.49,150.45,0.04660262]
[1724795031466,3.36679632,150.49,150.45,3.36885958]
[1724795031965,3.36679632,150.49,150.45,0.04660262]
[1724795032262,3.36679632,150.49,150.45,6.62284972]
[1724795035271,3.3227,150.48,150.45,3.29974972]
[1724795035460,3.3227,150.48,150.45,0.04660262]
[1724795035664,3.36679632,150.49,150.45,0.04660262]
[1724795036170,0.04439632,150.49,150.45,0.04660262]
[1724795036556,11.26439632,150.49,150.45,0.04660262]
[1724795036755,17.46560438,150.49,150.45,0.04660262]
[1724795036969,11.26439632,150.49,150.45,0.04660262]
[1724795037461,17.42099575,150.48,150.45,0.04660262]
[1724795037659,6.20099575,150.47,150.4,3.3242]
[1724795037965,6.20099575,150.47,150.41,3.31217599]
[1724795038261,3.3232,150.45,150.41,3.31217599]
[1724795038466,5.06026356,150.44,150.41,3.31217599]
[1724795038665,5.06026356,150.43,150.41,3.36119231]
[1724795038974,0.04450069,150.44,150.41,3.36119231]
[1724795039267,5.06028836,150.43,150.41,3.36119231]
[1724795039459,0.04450069,150.44,150.41,3.36119231]
[1724795039660,0.04450069,150.44,150.41,6.68519231]
[1724795039868,5.0602505,150.43,150.41,6.68519231]
[1724795040063,0.04450069,150.44,150.41,6.68519231]
[1724795040265,5.06138353,150.43,150.41,0.04901632]
[1724795040465,3.3236,150.43,150.41,3.39010343]
[1724795040766,0.04450069,150.44,150.41,3.39010343]
[1724795041367,6.64709065,150.43,150.41,3.39010343]
[1724795041661,6.64709065,150.42,150.41,3.39010343]
[1724795041869,3.36800069,150.44,150.41,3.39010343]
[1724795042169,6.64752158,150.43,150.41,3.39010343]
[1724795042461,3.36800069,150.44,150.41,3.32762214]
[1724795042665,6.64766438,150.43,150.41,3.32762214]
[1724795042868,3.3238,150.42,150.41,0.04901632]
[1724795043068,0.04450069,150.44,150.41,0.04901632]
[1724795043371,6.6476148,150.43,150.41,0.04901632]
[1724795043554,3.3237,150.43,150.41,0.04901632]
[1724795044364,3.3238,150.42,150.41,0.04901632]
[1724795044563,9.97203394,150.42,150.41,0.04901632]
[1724795045070,9.97196312,150.42,150.41,0.04901632]
[1724795047264,17.86816312,150.42,150.35,3.3252]
[1724795047465,6.64816312,150.41,150.35,11.22]
[1724795047665,3.3244,150.4,150.36,3.3251]
[1724795048367,0.04633683,150.4,150.36,0.05104072]
[1724795048663,3.3246,150.39,150.36,0.05104072]
[1724795049266,3.3248,150.38,150.36,0.05104072]
[1724795050664,3.3246,150.39,150.36,0.05104072]
[1724795051267,3.3247,150.38,150.36,0.05104072]
[1724795053187,3.3249,150.37,150.33,3.3258]
[1724795053668,3.3249,150.37,150.28,2.5837]
[1724795053669,11.22,150.34,150.16,6.6591]
[1724795053963,11.22,150.29,150.17,1.22233958]
[1724795054165,3.3274,150.26,150.23,0.05079241]
[1724795054371,0.05007465,150.27,150.23,0.04417856]
[1724795054766,11.22,150.26,150.23,0.04417856]
[1724795055262,3.3278,150.25,150.23,0.04417856]
[1724795055464,0.05007465,150.27,150.23,0.04417856]
[1724795055860,11.22,150.26,150.23,0.04417856]
[1724795056271,3.3278,150.24,150.23,0.04417856]
[1724795057262,2.4879,150.32,150.04,6.6642]
[1724795057469,6.65673003,150.31,150.17,11.22]
[1724795057879,3.3286,150.21,150.17,11.22]
[1724795058173,11.22,150.24,150.17,11.22]
[1724795058370,0.05014347,150.22,150.19,0.04779204]
[1724795058559,3.3287,150.2,150.19,0.04779204]
[1724795066467,3.3285,150.21,150.19,11.26779204]
[1724795067569,0.05014347,150.22,150.19,11.26779204]
[1724795068370,3.37854347,150.22,150.19,11.26779204]
[1724795068978,3.37854347,150.22,150.19,0.04779204]
[1724795072180,3.3287,150.2,150.19,0.04779204]
[1724795073489,11.22,150.2,150.1,17.1418]
[1724795073680,11.22,150.18,150.1,2.5911]
[1724795074283,0.05093229,150.16,150.12,0.04333308]
[1724795074686,3.3298,150.15,150.12,0.04333308]
[1724795075484,3.38073229,150.16,150.12,0.04333308]
[1724795075687,0.05093229,150.16,150.12,0.04333308]
[1724795076096,0.05093229,150.16,150.12,3.37373308]
[1724795076289,0.05093229,150.16,150.12,0.04333308]
[1724795076786,3.38053229,150.16,150.12,0.04333308]
[1724795077592,3.3298,150.15,150.12,0.04333308]
[1724795078289,3.38053229,150.16,150.12,0.04333308]
[1724795079492,3.33,150.15,150.12,0.04333308]
[1724795079687,11.22,150.15,150.12,0.04333308]
[1724795080099,3.3302,150.14,150.12,0.04333308]
[1724795082293,3.3302,150.13,150.12,0.04333308]
[1724795087303,3.3301,150.14,150.12,0.04333308]
[1724795087500,11.22,150.14,149.98,6.6668]
[1724795087707,0.05093229,150.16,150.05,11.22]
[1724795087708,11.22,150.12,150.05,11.22]
[1724795087901,3.331,150.1,149.99,2.6217]
[1724795088199,13.924,150.13,150.06,3.3515401]
[1724795088504,13.924,150.13,150.08,0.05095648]
[1724795088505,3.37394666,150.11,150.08,0.05095648]
[1724795088702,0.04314666,150.11,150.08,0.05095648]
[1724795089299,3.3311,150.09,150.08,0.05095648]
[1724795090510,14.5511,150.09,150.08,0.05095648]
[1724795090700,3.3311,150.09,150.08,0.05095648]
[1724795091008,14.5511,150.09,150.08,0.05095648]
[1724795091201,0.04314666,150.11,150.08,0.05095648]
[1724795091409,11.22,150.09,150.08,0.05095648]
[1724795091916,14.5511,150.09,150.08,0.05095648]
[1724795093304,13.5611,150.09,150.08,0.05095648]
[1724795095713,3.3311,150.09,150.08,0.05095648]
[1724795095909,3.3311,150.09,150.0,3.38221073]
[1724795095910,10.23,150.09,150.0,3.38221073]
[1724795096110,10.23,150.06,150.0,3.38221073]
[1724795096307,3.3322,150.04,150.0,3.38221073]
[1724795097006,3.37578454,150.04,150.0,6.76089351]
[1724795097508,0.04358454,150.04,150.0,3.42789351]
[1724795098800,3.37598454,150.04,150.0,3.42789351]
[1724795101208,3.37598454,150.04,150.0,0.04568278]
[1724795101806,3.37598454,150.04,150.0,3.3587972]
[1724795102018,3.37598454,150.04,150.0,0.04568278]
[1724795102514,3.37598454,150.04,150.0,3.4157877]
[1724795105509,3.37598454,150.04,150.0,0.04568278]
[1724795105710,3.3327,150.03,150.0,0.04568278]
[1724795107168,13.5727,150.03,150.0,0.04568278]
[1724795107619,3.3327,150.03,150.0,0.04568278]
[1724795108213,3.3327,150.02,150.0,0.04568278]
[1724795108820,3.334,149.97,149.91,2.5743]
[1724795109019,10.24,149.97,149.91,5.87719591]
[1724795109417,10.24,149.97,149.91,5.9093]
[1724795109718,0.04633744,149.95,149.93,0.05020528]
[1724795110823,3.38063744,149.95,149.93,0.05020528]
[1724795111119,3.3345,149.94,149.93,0.05020528]
[1724795111516,13.5745,149.94,149.93,0.05020528]
[1724795111710,0.04633744,149.95,149.85,3.3364]
[1724795111925,10.24,149.92,149.85,6.69785108]
[1724795112113,10.24,149.92,149.85,3.3364]
[1724795112316,13.4324,150.03,149.85,13.60978636]
[1724795112521,10.24,149.95,149.87,10.24]
[1724795112722,0.05050457,149.92,149.9,0.04730453]
[1724795114122,0.05050457,149.92,149.9,3.38250453]
[1724795114815,0.05050457,149.92,149.91,3.3351]
[1724795115022,0.05050457,149.92,149.91,2.4951]
[1724795115323,10.24,149.98,149.91,5.8302]
[1724795115619,13.5738,149.98,149.91,5.8302]
[1724795115833,2.5801,150.01,149.91,2.4951]
[1724795116017,10.24,149.99,149.91,5.8301]
[1724795116316,3.334,149.97,149.91,2.4951]
[1724795116521,0.04374474,149.96,149.94,0.05104659]
[1724795118424,0.04374474,149.96,149.94,3.38534659]
[1724795119026,2.6236,150.02,149.96,3.334]
[1724795119027,10.24,150.02,149.96,3.334]
[1724795119226,8.0,150.08,149.96,6.6238686]
[1724795119426,10.24,150.01,149.96,6.6238686]
[1724795119626,10.24,150.01,149.95,3.3342]
[1724795119833,10.24,150.01,149.92,10.24]
[1724795120128,10.28841627,149.99,149.97,0.04811103]
[1724795120328,10.28989751,149.99,149.97,0.0451757]
[1724795121025,0.04989751,149.99,149.97,0.0451757]
[1724795122927,10.28989751,149.99,149.97,0.0451757]
[1724795123726,0.04989751,149.99,149.97,0.0451757]
[1724795127731,10.28989751,149.99,149.97,0.0451757]
[1724795128024,13.62329751,149.99,149.97,0.0451757]
[1724795128224,3.38329751,149.99,149.97,0.0451757]
[1724795128532,0.04989751,149.99,149.97,0.0451757]
[1724795131323,0.04989751,149.99,149.95,3.39867973]
[1724795131324,0.04989751,149.99,149.77,19.94]
[1724795131526,8.0,150.08,149.9,10.24]
[1724795131833,10.24,149.99,149.9,15.3706]
[1724795132130,3.3336,149.98,149.93,3.3345]
[1724795132544,0.04207294,149.97,149.94,0.0427287]
[1724795132745,0.04207294,149.97,149.94,3.3771287]
[1724795133033,0.04207294,149.97,149.94,0.0427287]
[1724795134431,10.28207294,149.97,149.94,0.0427287]
[1724795135225,0.04207294,149.97,149.94,0.0427287]
[1724795135436,10.28207294,149.97,149.94,0.0427287]
[1724795136442,3.3342,149.96,149.94,0.0427287]
[1724795138638,3.3342,149.95,149.94,0.0427287]
[1724795140340,13.5742,149.95,149.94,0.0427287]
[1724795141657,3.3342,149.95,149.94,0.0427287]
[1724795141864,13.5742,149.95,149.94,0.0427287]
[1724795145391,3.3342,149.95,149.94,0.0427287]
[1724795145556,13.5742,149.95,149.94,0.0427287]
[1724795148056,10.24,149.95,149.76,6.6769]
[1724795148253,10.24,149.9,149.83,10.24]
[1724795148555,3.36723804,149.98,149.83,10.24]
[1724795148556,10.24,149.89,149.83,3.3622357]
[1724795148759,10.24,149.89,149.81,10.24]
[1724795148955,3.3362,149.86,149.84,0.04263521]
[1724795149155,0.05022143,149.86,149.84,0.04263521]
[1724795149558,3.38662143,149.86,149.84,0.04263521]
[1724795149851,0.05022143,149.86,149.84,0.04263521]
[1724795150054,10.29022143,149.86,149.84,0.04263521]
[1724795150264,3.3365,149.85,149.84,0.04263521]
[1724795150575,10.24,149.86,149.75,18.1774]
[1724795150857,3.3375,149.81,149.77,3.3381]
[1724795151057,10.24,149.81,149.75,11.33400432]
[1724795151257,10.24,149.81,149.75,5.3028]
[1724795151450,3.338,149.78,149.73,87.61917039]
[1724795151757,0.05038339,149.79,149.71,15.329]
[1724795151758,10.29038339,149.79,149.71,15.329]
[1724795151958,0.05040464,149.76,149.71,15.329]
[1724795152160,0.05040464,149.76,149.71,18.6686]
[1724795152555,0.05040464,149.76,149.71,15.329]
[1724795152747,0.05040464,149.76,149.67,2.6454]
[1724795152962,10.24,149.71,149.65,3.3572408]
[1724795153256,0.04471768,149.69,149.65,2.5172]
[1724795153453,0.04471768,149.69,149.65,5.8581]
[1724795153757,0.04471768,149.69,149.65,2.5172]
[1724795154452,0.04471768,149.69,149.66,3.3406]
[1724795154654,0.04471768,149.69,149.65,2.5172]
[1724795155048,0.04471768,149.69,149.64,2.6208]
[1724795155455,3.38481768,149.69,149.64,2.6208]
[1724795155867,0.04471768,149.69,149.62,2.6987]
[1724795156863,3.3404,149.68,149.62,6.0401]
[1724795157068,0.04471768,149.69,149.62,3.3414]
[1724795157265,3.3407,149.66,149.59,6.0409]
[1724795157465,0.04890977,149.64,149.59,6.0409]
[1724795157670,0.04488531,149.63,149.59,2.6987]
[1724795158572,0.04488531,149.63,149.6,3.342]
[1724795158867,0.04488531,149.63,149.59,2.6987]
[1724795159668,0.04488531,149.63,149.6,25.65]
[1724795159869,28.9897,149.71,149.6,25.65]
[1724795160178,25.65,149.71,149.59,2.6987]
[1724795160362,2.482,149.74,149.61,25.65]
[1724795160363,25.65,149.73,149.61,25.65]
[1724795160568,3.3395,149.72,149.61,25.65]
[1724795161068,0.0443704,149.68,149.65,0.04960488]
[1724795161374,5.1809,149.78,149.65,3.37737096]
[1724795161573,28.2875,149.78,149.67,25.65]
[1724795161783,3.3387,149.75,149.68,3.30972579]
[1724795162172,28.2875,149.78,149.68,3.30972579]
[1724795162369,0.04342381,149.74,149.72,0.04270047]
[1724795165472,3.32488266,149.91,149.72,0.04270047]
[1724795165673,3.32488266,149.91,149.71,25.65]
[1724795165674,25.65,149.84,149.73,25.65]
[1724795165970,25.65,149.84,149.71,8.0]
[1724795165971,25.65,149.84,149.71,33.65]
[1724795166276,2.7058,149.86,149.71,33.65]
[1724795166567,0.05062504,149.8,149.77,0.04948651]
[1724795166770,0.04933383,149.8,149.77,0.04472928]
[1724795167360,2.5469,149.91,149.77,0.04472928]
[1724795167573,25.65,149.88,149.76,2.6317]
[1724795167866,3.3367,149.85,149.79,3.3376]
[1724795168171,3.3367,149.85,149.76,6.03449929]
[1724795168367,0.05120134,149.82,149.79,0.04559327]
[1724795168564,0.05120134,149.82,149.8,3.3374]
[1724795169376,0.05120134,149.82,149.81,3.3373]
[1724795172676,0.05120134,149.82,149.79,3.38319327]
[1724795173075,0.05120134,149.82,149.79,0.04559327]
[1724795177479,0.05120134,149.82,149.8,3.3374]
[1724795178172,0.05120134,149.82,149.79,0.04559327]
[1724795178571,0.05120134,149.82,149.79,3.44789635]
[1724795178777,0.05120134,149.82,149.8,3.3374]
[1724795179679,0.05120134,149.82,149.81,3.3373]
[1724795180777,28.9658,149.88,149.82,3.337]
[1724795181176,3.3358,149.88,149.82,3.337]
[1724795181382,5.1202,149.91,149.8,8.67745783]
[1724795181581,25.63,149.89,149.8,8.67745783]
[1724795181888,0.04787113,149.86,149.83,0.04554106]
[1724795184181,3.38427113,149.86,149.83,0.04554106]
[1724795184386,0.04787113,149.86,149.83,0.04554106]
[1724795185284,3.38417113,149.86,149.83,0.04554106]
[1724795185990,0.04787113,149.86,149.83,0.04554106]
[1724795190580,25.63,149.85,149.61,6.6834]
[1724795190788,25.63,149.82,149.72,25.63]
[1724795190984,25.63,149.82,149.72,29.01050303]
[1724795191194,3.338,149.79,149.73,3.3391]
[1724795191686,3.338,149.79,149.75,0.04414483]
[1724795191687,0.04834539,149.77,149.75,0.04414483]
[1724795192699,3.3385,149.76,149.75,0.04414483]
[1724795192878,25.67834539,149.77,149.4,154.57859636]
[1724795193087,25.63,149.74,149.61,25.63]
[1724795193281,4.9598,149.75,149.62,3.33978614]
[1724795193484,25.63,149.71,149.62,3.33978614]
[1724795193682,3.3416,149.62,149.4,174.65659636]
[1724795193888,0.04846128,149.55,149.53,0.04700948]
[1724795194086,0.04788467,149.55,149.53,0.05046504]
[1724795196489,0.04788467,149.55,149.54,3.3434]
[1724795196696,0.04788467,149.55,149.53,0.05046504]
[1724795200090,0.04788467,149.55,149.44,25.7]
[1724795200323,2.6953,149.56,149.44,25.7]
[1724795200584,5.3429,149.56,149.44,3.36564588]
[1724795200763,3.3443,149.5,149.43,3.3458]
[1724795200926,5.3429,149.56,149.44,3.36432141]
[1724795201091,5.3429,149.56,149.49,0.04618691]
[1724795201092,0.04475159,149.51,149.49,0.04618691]
[1724795201298,3.3447,149.49,149.42,3.346]
[1724795201497,25.7,149.53,149.41,25.7]
[1724795202003,3.3447,149.49,149.42,3.346]
[1724795202307,0.05057012,149.45,149.43,0.04823806]
[1724795202507,0.04660403,149.45,149.43,0.04443659]
[1724795202807,8.0,149.51,149.34,1.22906653]
[1724795202808,32.12,149.48,149.34,1.22906653]
[1724795203197,3.3456,149.44,149.36,3.3472]
[1724795203401,32.12,149.48,149.33,35.45255414]
[1724795203704,0.04592193,149.42,149.34,1.22915646]
[1724795204396,0.04592193,149.42,149.37,3.3472]
[1724795204489,2.5784,149.47,149.33,32.12]
[1724795204490,0.05130674,149.41,149.35,1.22916915]
[1724795204696,0.05130674,149.41,149.38,3.3468]
[1724795204994,0.04618832,149.41,149.34,32.12]
[1724795205298,32.12,149.54,149.4,32.12]
[1724795205513,3.3448,149.48,149.34,8.0]
[1724795205796,1.0,149.52,149.39,32.12]
[1724795206196,42.6984,149.54,149.34,8.0]
[1724795206393,0.04793155,149.45,149.43,0.05119468]
[1724795206598,0.0513216,149.45,149.43,0.04759687]
[1724795210201,0.0513216,149.45,149.34,32.12]
[1724795210415,8.0,149.48,149.34,32.12]
[1724795210607,32.12,149.47,149.34,32.12]
[1724795210991,32.12,149.47,149.31,5.1582]
[1724795211205,0.045975,149.4,149.36,3.3474]
[1724795211409,0.04557322,149.39,149.36,3.3474]
[1724795211909,0.04557322,149.39,149.35,3.3476]
[1724795212509,0.04557322,149.39,149.32,34.7859]
[1724795213101,0.04557322,149.39,149.19,24.16205968]
[1724795213302,0.05019051,149.34,149.28,32.12]
[1724795213500,2.518,149.46,149.28,32.12]
[1724795213501,0.04222007,149.32,149.28,32.12]
[1724795213717,0.04532276,149.31,149.3,3.3486]
[1724795214007,0.04325027,149.32,149.28,32.12]
[1724795214410,3.3466,149.4,149.27,3.3219547]
[1724795214597,2.518,149.46,149.34,3.3478]
[1724795214598,34.638,149.46,149.34,3.3478]
[1724795214809,3.3465,149.4,149.34,3.3478]
[1724795215108,34.638,149.46,149.32,32.12]
[1724795215300,0.04305212,149.4,149.38,0.04275464]
[1724795215503,3.3462,149.42,149.38,0.04275464]
[1724795215704,0.0449064,149.41,149.38,0.04275464]
[1724795217100,3.3467,149.4,149.38,0.04275464]
[1724795217302,0.0449064,149.41,149.38,0.04275464]
[1724795217810,3.3467,149.4,149.38,0.04275464]
[1724795218713,0.0449064,149.41,149.38,0.04275464]
[1724795219915,3.3467,149.39,149.38,0.04275464]
[1724795220504,3.3912064,149.41,149.38,0.04275464]
[1724795220707,0.0449064,149.41,149.38,0.04275464]
[1724795225110,0.0449064,149.41,149.38,3.38955464]
[1724795226316,0.0449064,149.41,149.38,0.04275464]
[1724795227420,0.0449064,149.41,149.39,3.3467]
[1724795227712,25.72,149.48,149.37,8.43638915]
[1724795228416,29.0647,149.48,149.4,3.3465]
[1724795228839,0.04337268,149.45,149.43,0.04706234]
[1724795232925,3.3446,149.49,149.43,0.04706234]
[1724795233117,32.13,149.5,149.43,0.04706234]
[1724795233310,35.4745,149.5,149.43,0.04706234]
[1724795233512,32.13,149.5,149.43,0.04706234]
[1724795233928,0.05021573,149.48,149.43,0.04706234]
[1724795234314,3.39511573,149.48,149.43,0.04706234]
[1724795235317,3.345,149.47,149.43,0.04706234]
[1724795236433,32.18021573,149.48,149.43,0.04706234]
[1724795236721,32.13,149.45,149.43,0.04706234]
[1724795236914,35.4754,149.45,149.43,0.04706234]
[1724795237217,0.05021573,149.48,149.43,0.04706234]
[1724795237420,32.13,149.45,149.43,0.04706234]
[1724795237924,3.346,149.43,149.37,5.1489]
[1724795238114,32.13,149.45,149.37,5.1489]
[1724795238615,32.13,149.41,149.32,8.76]
[1724795238821,32.13,149.41,149.32,2.5492]
[1724795239119,32.17360006,149.38,149.35,0.04382695]
[1724795239310,32.13,149.36,149.35,0.04345016]
[1724795239611,32.13,149.36,149.26,5.1953]
[1724795239828,32.13,149.36,149.23,2.4797]
[1724795240010,32.13,149.33,149.23,2.4797]
[1724795240538,0.04262083,149.29,149.27,0.04343091]
[1724795240621,32.13,149.28,149.27,0.04343091]